Cogmind - Beta 16 @@@ ROGUE MODE // 2026.02.09 @ 19:34:39 Player: AlmondRoll Result: Destroyed by 91-OJW(R) with Subdweller Machine Gun Performance ------------- Evolutions (0) 0 Regions Visited (2) 400 Robots Destroyed (25) 125 Value Destroyed (425) 425 Prototype IDs (2) 40 Alien Tech Used (0) 0 Bonus (0) 0 TOTAL SCORE: 990 Bonus ------- None Cogmind --------- Core Integrity 0/250 Matter 300/300 Energy 199/200 System Corruption 0% Temperature Cool (0) Movement Rolling (175) Ox5 Location -10/Subcaves Parts ------- > --- POWER (1) -------- Subdweller Power Source > --- PROPULSION (2) --- Compact Wheel > --- UTILITY (2) ------ Huge Storage Unit Seismic Detector > --- WEAPON (2) ------- Hammer > --- INVENTORY (25) --- Light Nuclear Core Compact Wheel Flight Unit Flight Unit Flight Unit Flight Unit Disposable Heat Sink Medium Storage Unit Weight Redist. System Sensor Array Signal Interpreter Improved Terrain Scanner Core Shielding Hacking Suite Medium Laser Medium Laser Subdweller Beam Cannon Light Assault Rifle Hammer Scrap Shield Fragment (45) Scrap Shield Fragment (45) Peak State ------------ > --- POWER ------------ Subdweller Power Source > --- PROPULSION ------- Compact Wheel Subdweller Monowheel > --- UTILITY ---------- Huge Storage Unit Core Shielding > --- WEAPON ----------- Subdweller Beam Cannon Subdweller Machine Gun > --- INVENTORY -------- Light Nuclear Core Compact Wheel Flight Unit Flight Unit Flight Unit Flight Unit Disposable Heat Sink Medium Storage Unit Weight Redist. System Sensor Array Signal Interpreter Improved Terrain Scanner Seismic Detector Hacking Suite Medium Laser Medium Laser Light Assault Rifle Hammer Hammer Scrap Shield Fragment Scrap Shield Fragment [Rating: 14] Favorites ----------- Power Light Ion Engine Engine Light Ion Engine Power Core Light Nuclear Core Propulsion Light Treads Treads Light Treads Leg Aluminum Leg Wheel Compact Wheel Utility Huge Storage Unit Device Seismic Detector Storage Huge Storage Unit Protection Core Shielding Weapon Light Assault Rifle Energy Gun Medium Laser Energy Cannon Subdweller Beam Cannon Ballistic Gun Light Assault Rifle Impact Weapon Hammer Build | -11 -10 -10 ------- Run | Yrd Mat Sub Slots Evolved . | . . . Power . | . . . Propulsion . | . . . Utility . | . . . Weapon . | . . . Parts Attached 23 | 3 14 6 Power 5 | . 4 1 Engine 4 | . 3 1 Core 1 | . 1 . Reactor . | . . . Propulsion 5 | 2 1 2 Treads 3 | 2 1 . Leg . | . . . Wheel 2 | . . 2 Hover . | . . . Flight . | . . . Utility 5 | 1 3 1 Device 2 | 1 . 1 Storage 2 | . 2 . Processor . | . . . Hackware . | . . . Protection 1 | . 1 . Artifact . | . . . Weapon 8 | . 6 2 Energy Gun 1 | . 1 . Energy Cannon 1 | . . 1 Ballistic Gun 4 | . 3 1 Ballistic Cannon . | . . . Launcher . | . . . Special Weapon . | . . . Impact Weapon 2 | . 2 . Slashing Weapon . | . . . Piercing Weapon . | . . . Special Melee Weapon . | . . . Unidentified Prototypes . | . . . Parts Lost 6 | . . 6 Power 1 | . . 1 Propulsion 3 | . . 3 Utility . | . . . Weapon 2 | . . 2 Highest Loss Streak 4 | . . 4 To Critical Strikes 1 | . . 1 Average Backups 13 | 6 10 18 Power . | 1 . 1 Propulsion 4 | 4 3 6 Utility 4 | . 3 7 Weapon 3 | 1 3 4 Tool/Special . | . . . Unused Backups 20 | . 8 12 Power 1 | . 1 . Propulsion 7 | . 2 5 Utility 8 | . 2 6 Weapon 4 | . 3 1 Tool/Special . | . . . Average Slot Usage (%) 99 | . 99 98 Engine 11 | . 10 13 Core 2 | . 3 . Treads 23 | . 28 17 Wheel 3 | . . 9 Device 7 | . 5 11 Storage 14 | . 14 14 Protection 6 | . 8 2 Energy Gun 4 | . 7 1 Ballistic Gun 14 | . 14 13 Impact Weapon 8 | . 6 11 Peak Build Rating 14 | 8 10 14 Average Rating 9 | 6 8 10 On Entrance 7 | 6 8 9 Avg Prop Armor Cover (%) . | . . . Naked Turns . | . . . Heaviest Build 98 | 12 87 98 Greatest Support 40 | 40 40 40 Greatest Overweight (x) 5 | . 2 5 Average Overweight (x) 1 | . . 2 Largest Inventory Capacity 25 | 8 25 25 Average Capacity 19 | 8 16 25 Most Carried 21 | 8 18 21 Average Carried 14 | 6 10 19 Final Capacity 25 | 8 25 25 Final Carried 21 | 8 18 21 Class Distribution -------------------- 73% | Mutant 26% | Scavenger-Mutant Dominant Class ---------------- Mutant | -10/Materials Scavenger-Mutant | -10/Subcaves Resources | -11 -10 -10 ----------- Run | Yrd Mat Sub Matter Collected 548 | 236 206 106 Remotely . | . . . Salvage Created 832 | 77 643 112 Parts 49 | 7 36 6 Haulers Intercepted 1 | . 1 . Recyclers Shooed 1 | . 1 . Parts Field Recycled . | . . . Retrieved Matter . | . . . Parts Self-Destructed 7 | . . 7 Prevented . | . . . Parts Restored . | . . . Kills | -11 -10 -10 ------- Run | Yrd Mat Sub Combat Hostiles Destroyed 15 | . 12 3 Guns 15 | . 12 3 Classes Destroyed 8 | 2 5 1 Builder 2 | . 2 . Tunneler 2 | 1 1 . Hauler 1 | . 1 . Recycler 4 | 1 3 . Operator 1 | . 1 . Swarmer 8 | . 8 . Grunt 4 | . 4 . Subdweller 3 | . . 3 Best Kill Streak 7 | 2 7 3 Combat Bots Only 4 | . 4 3 Max Kills in Single Turn 1 | 1 1 1 Gunslinging . | . . . Exploded . | . . . Melee . | . . . Uniques/NPCs Destroyed . | . . . Combat | -11 -10 -10 -------- Run | Yrd Mat Sub Hostile Shots Fired 116 | . 85 31 Missed 28 | . 22 6 Hits 88 | . 63 25 Projectile 88 | . 63 25 Critical Strikes 1 | . . 1 Damage Taken 1321 | . 600 721 Core 268 | . 119 149 Absorbed by Shields . | . . . Redirected to Shielding 15 | . 5 10 Core Remaining (%) 100 | 100 . . Volleys Fired 77 | 6 55 16 Largest 2 | 2 2 2 Hottest 70 | 70 70 70 Shots Fired 154 | 12 110 32 Gun 154 | 12 110 32 Cannon . | . . . Launcher . | . . . Special . | . . . Kinetic 81 | 6 59 16 Thermal 73 | 6 51 16 Explosive . | . . . Electromagnetic . | . . . Robot Hit Streak 11 | 4 11 7 Robot Miss Streak 5 | 1 5 2 Penetration Max . | . . . Secondary Targets 1 | . 1 . Max Gunslinging Chain 1 | . 1 . Shots Hit Robots 107 | 8 70 29 Core Hits 48 | 3 35 10 Critical Kills . | . . . Critical Parts Destroyed . | . . . Critical Strikes 3 | . 1 2 Burn 3 | . 1 2 Melee Attacks 27 | . 13 14 Impact 27 | . 13 14 Slashing . | . . . Piercing . | . . . Sneak Attacks 2 | . 2 . Combat Hostiles . | . . . Follow-up Attacks . | . . . Damage Inflicted 1247 | 76 830 341 Guns 1054 | 76 732 246 Cannons . | . . . Explosions . | . . . Melee 192 | . 97 95 Ramming 1 | . 1 . Kinetic 483 | 51 309 123 Thermal 571 | 25 423 123 Explosive . | . . . Electromagnetic . | . . . Impact 192 | . 97 95 Slashing . | . . . Piercing . | . . . Highest Corruption . | . . . Average Corruption . | . . . Corruption Purged . | . . . Corruption Blocked . | . . . Overload Shots . | . . . Overflow Damage . | . . . Projectiles . | . . . Explosions . | . . . Melee . | . . . Knockbacks . | . . . Impact . | . . . Kinetic . | . . . Secondary . | . . . Self-Inflicted Damage . | . . . Shots . | . . . Rammed 1 | . 1 . Targets Rammed 1 | . 1 . Kicked . | . . . Crushed . | . . . Highest Temperature 255 | 100 255 8 Average Temperature 66 | 43 71 4 Received Heat Transfer 279 | . 144 135 Siege Activations . | . . . Martial Activations . | . . . Shielding Activations . | . . . Robots Disrupted . | . . . Combat Hostiles . | . . . Robots Corrupted . | . . . Combat Hostiles . | . . . Parts Fried . | . . . Impact Corruptions . | . . . Robots Melted . | . . . Combat Hostiles . | . . . Parts Melted 2 | . 2 . Heat Transferred 1924 | 74 1332 518 Parts Sabotaged . | . . . Parts Stolen . | . . . Parts Stripped . | . . . Power Chain Reactions . | . . . Alert | -11 -10 -10 ------- Run | Yrd Mat Sub Maximum Alert Level . | . . . Low Security (%) 100 | 100 100 . Level 1 . | . . . Level 2 . | . . . Level 3 . | . . . Level 4 . | . . . Level 5 . | . . . High Security . | . . . Max Security . | . . . Peak Influence 127 | 10 127 . Initial . | . . . Average 28 | . 29 . Influence Increases 385 | 10 375 . Destroy 0b10 Robot/C 240 | . 240 . Destroy 0b10 Robot/NC 50 | 10 40 . Destroy Leader 42 | . 42 . Successful Hack 5 | . 5 . Disable Machine 15 | . 15 . Destroy Structure 3 | . 3 . Lose Combat Pursuer 30 | . 30 . Influence Decreases 385 | 10 375 . Time Decay 385 | 10 375 . Squads Dispatched 2 | . 2 . Investigation . | . . . Extermination . | . . . Reinforcement 2 | . 2 . Assault . | . . . Garrison . | . . . Intercept . | . . . Searches Triggered . | . . . Construction Impeded . | . . . Haulers Reinforced . | . . . Active Scanning Responses . | . . . Cargo Convoy Interrupts . | . . . Stealth | -11 -10 -10 --------- Run | Yrd Mat Sub Distress Signals 4 | . 4 . Communications Jammed . | . . . Distress Signals . | . . . Times Spotted 30 | . 26 4 Peak Tracking Total 6 | . 6 3 Tactical Retreats 1 | . 1 . Traps | -11 -10 -10 ------- Run | Yrd Mat Sub Traps Triggered 2 | . . 2 Indirectly . | . . . Trap Hack Attempts . | . . . Triggered . | . . . Disarmed . | . . . Reprogrammed . | . . . Reused . | . . . Traps Extracted . | . . . Installed . | . . . Triggered . | . . . Machines | -11 -10 -10 ---------- Run | Yrd Mat Sub Machines Disabled 1 | . 1 . Max in Single Turn 1 | . 1 . Machines Repaired . | . . . Machines Dismantled . | . . . Machines Sabotaged . | . . . Overloaded Fab Kills . | . . . Hacking | -11 -10 -10 --------- Run | Yrd Mat Sub Machines Accessed 2 | . 2 . Terminals 2 | . 2 . Fabricators . | . . . Repair Stations . | . . . Recycling Units . | . . . Scanalyzers . | . . . Garrison Access . | . . . Total Hacks 6 | . 6 . Successful 4 | . 4 . Failed 2 | . 2 . Catastrophic . | . . . Database Lockouts . | . . . Manual . | . . . Terminals 6 | . 6 . Fabricators . | . . . Repair Stations . | . . . Recycling Units . | . . . Scanalyzers . | . . . Garrison Access . | . . . Terminal Hacks 4 | . 4 . Prototype ID Bank 1 | . 1 . Locate Traps 1 | . 1 . Recall Reinforcements 1 | . 1 . Hauler Manifests 1 | . 1 . Fabricator Hacks . | . . . Repair Station Hacks . | . . . Recycling Unit Hacks . | . . . Scanalyzer . | . . . Garrison Access Hacks . | . . . Unauthorized Hacks . | . . . Terminals . | . . . Fabricators . | . . . Repair Stations . | . . . Recycling Units . | . . . Scanalyzers . | . . . Garrison Access . | . . . Data Cores Recovered . | . . . Used . | . . . Hacking Detections 1 | . 1 . Full Trace Events . | . . . Feedback Events . | . . . Feedback Blocked . | . . . Robot Schematics Acquired . | . . . Robots Built . | . . . Authchips . | . . . Time . | . . . Total Robot Build Rating . | . . . Part Schematics Acquired . | . . . Parts Built . | . . . Authchips . | . . . Time . | . . . Total Part Build Rating . | . . . Part Studies Acquired . | . . . Parts Repaired . | . . . Time . | . . . Parts Recycled . | . . . Recycled Matter . | . . . Retrieved Matter . | . . . Retrieved Components . | . . . Parts Scanalyzed . | . . . Part Schematics Acquired . | . . . Parts Damaged . | . . . Bothacking | -11 -10 -10 ------------ Run | Yrd Mat Sub Used RIF Installer . | . . . Robots Hacked . | . . . Non-combat . | . . . Combat . | . . . Robot Hacks Applied . | . . . Relay Couplers Released . | . . . Fabnet Peak Effective % . | . . . Robots Rewired . | . . . Allies Hacked . | . . . Hacks Repelled . | . . . Allies | -11 -10 -10 -------- Run | Yrd Mat Sub Total Allies . | . . . Largest Group . | . . . Highest-Rated Group . | . . . Highest-Rated Ally . | . . . Total Orders . | . . . Ally Attacks . | . . . Total Damage . | . . . Kills . | . . . Allies Corrupted . | . . . Allies Melted . | . . . Intel | -11 -10 -10 ------- Run | Yrd Mat Sub Active Infowar (turns) 1530 | 22 592 916 Seismic 1530 | 22 592 916 Robot Analysis Total . | . . . Derelict Logs Recovered 1 | . . 1 Drone Launches . | . . . Drone Recoveries . | . . . Exploration | -11 -10 -10 ------------- Run | Yrd Mat Sub Turns Passed 2767 | 46 1626 1095 Spaces Moved 1104 | 15 622 467 Core . | . . . Treads 840 | 15 622 203 Legs . | . . . Wheels 264 | . . 264 Hover . | . . . Flight . | . . . Fastest Speed 129 | 160 160 129 Average Speed 216 | 160 220 212 Slowest Speed 320 | 160 320 320 Overloaded Moves . | . . . Propulsion Burnouts . | . . . Robots Hopped . | . . . Potential Cave-ins . | . . . Cave-ins Triggered . | . . . Exploration Rate (%) 27 | 2 50 30 Regions Visited 2 Branch Regions 1 Pre-discovered Areas . | . . . Known Exits Taken . | . . . Unknown Exits Taken 2 | 1 1 . Scrap Searched . | . . . Spaces Dug 3 | . 3 . Terrain Destroyed 3 | . 3 . Melee 3 | . 3 . Projectile . | . . . AOE . | . . . Terrain Rammed . | . . . Walls Destroyed . | . . . Machines Disabled . | . . . Actions | -11 -10 -10 --------- Run | Yrd Mat Sub Total 1296 | 25 758 513 Wait 14 | . 14 . Move 1102 | 14 621 467 Hop . | . . . Pick Up 27 | 2 20 5 Fast Attach 7 | 1 5 1 Attach 3 | . . 3 Detach 2 | . 2 . Swap 19 | 2 10 7 Drop 17 | . 17 . Fire 77 | 6 55 16 Melee 27 | . 13 14 Ram . | . . . Kick . | . . . Crush 1 | . 1 . Escape Stasis . | . . . Rewire . | . . . Trap . | . . . Miscellaneous . | . . . Route ------- -11/Scrapyard -10/Materials (discovered 2 exits: [*Mat] / [*Sub]) -10/Subcaves (discovered 1 exit: [*Mat]) History --------- Turn | Location | Event 21 | -11/Scrapyard | Discovered new exit (range 3) 47 | -11/Scrapyard | Entered Materials 325 | -10/Materials | Build established: Mutant 455 | -10/Materials | Discovered new exit (range 16) 573 | -10/Materials | Discovered new exit (range 2) 1673 | -10/Materials | Entered Subcaves 1674 | -10/Subcaves | Approached by a straggling Scientist 1677 | -10/Subcaves | Discovered new exit (range 12) 1697 | -10/Subcaves | Shifting Twisted Machinery released Mak. System Restoration Module 1715 | -10/Subcaves | Learned Materials terminal intel 1776 | -10/Subcaves | Shifting Twisted Machinery released Sub. Monowheel 2034 | -10/Subcaves | Build established: Scavenger-Mutant 2342 | -10/Subcaves | Core integrity fell below 50% 2381 | -10/Subcaves | A swath of the cavern ceiling suddenly collapsed 2396 | -10/Subcaves | Lost 4 parts (1p2n1w) 2484 | -10/Subcaves | Core integrity fell below 20% 2768 | -10/Subcaves | Destroyed by 91-OJW(R) with Subdweller Machine Gun Last Messages --------------- 02383_ Acquired 42 matter. 02387_ Acquired 14 matter. 02390_ Acquired Sub. Power Source. 02392_ Acquired Scrap Shield Fragment. 02393_ Acquired 10 matter. 02396_ Acquired Scrap Shield Fragment. 02402_ Acquired Sub. Beam Cannon. 02405_ Acquired 8 matter. 02406_ Acquired 2 matter. 02407_ Subatomizers dissect the Disposable Heat Sink. 02409_ Acquired Disposable Heat Sink. 02477_ Triggered Piercing Trap. 02477_ Spikes shoot up from the floor. 02477_ Critical hit (Impale). 02483_ Triggered Shrapnel Trap. 02483_ An expanding cloud of shrapnel blasts out in all directions. 02614_ Acquired 20 matter. 02756_ Critical hit (Destroy). 02756_ Sub. Machine Gun destroyed. 02762_ Sub. Monowheel destroyed. Map ----- +----------------------------------------------------+ | ?????????????????????# ##? | | ?????????????????????# ### ##?? | | ?????????????????????# ## ### #???? | | ?????????????????????## #?# #####?# ######## | | ??????????????????????###??# #?????# # ## | | ??????????????????????????## #?????## | | ??????????????????????????# ####?#### | | ??????????????????????????# ## ### # # | | ??????????????????????????# ## | | ??????????????????????????# ## ## | | ??????????????????????????## # # ## ### ###? | | ?????????????????????????## ########?###??? | | ?????????????????????????# #?????????????? | | ?????????????????????????# #?????????????? | | ?????????????????????????## #?????????????? | | ??????????????????????????# ##?????????????? | | ??????????????????????????# ##??????????????? | | ??????????????????????????## ##??????????????? | | ???????????????????????????## ##?????????????? | | ????????????????####???###### #?????????????? | | ????????????????# ##### ## #?????????????? | | ????????????????# #?????????????? | | ????????????????## ## #?????????????? | | ?????????????????## ### #?????????????? | | ??????????????????# ##?# ##?????????????? | | ??????????????????# @##??# #??????###?????? | | ?????????????????#""" R##???# #?????## ######? | | ????????????????# "######?#### #?????#" ##""## | | ???????????????" #?????## #?????#" " " | | ??????????????" #?????# ##???##""" " | | ????????????? "" ??????### " ##??# "" ### # | | ?????????????" "" ????????## " #??# ### | | ?????????????? " ?????????# " ####"""## | | ????????????????"" ???###???# " ## ""# < | | ???????????????????????# ???# " # """" | | ???????????????????????# #?## " """" | | ??????????????????????## ## " ####""# | | ??????????????????????# #?# " #"" | | ??????????????????????# ## ## "## | | ??????????????????????# ## ## "# | | ??????????????????????## ## """""??## | | ???????????????????????# ##"""""???## | | ???????????????????????# ###?#"""#????? | | ???????????????????????## ######???# #??????? | | ????????????????????????########?????????????????? | | ?????????????????????????????????????????????????? | | ?????????????????????????????????????????????????? | | ?????????????????????????????????????????????????? | | ?????????????????????????????????????????????????? | | ?????????????????????????????????????????????????? | +----------------------------------------------------+ Best States ------------- Heat Dissipation 25 Energy Generation 14 Energy Capacity 250 Matter Stores 300 Matter Capacity 300 Sight Range 16 Terrain Scan Density 10 Core Shielding 20 Evasion (%) 40 Recoil Reduction 2 Item Schematics ----------------- None Robot Schematics ------------------ None Fabricated ------------ Nothing Repaired ---------- Nothing Studied --------- None Alien Tech Used ----------------- None Achievements -------------- None Challenges ------------ None Game ------ Seed PhysicsExplosiveTurbovents Manual? 0 Play Time 00:14:41 Cumulative 439.8 hours Start 2026.02.09 @ 19:23:29 End 2026.02.09 @ 19:34:39 Sessions 1 Manual Loads 0 Difficulty Rogue Special Mode None Game No. 211 Rogue 211 Adventurer 0 Explorer 0 Win Type - Total 15 Types 8/0/5/2/0/0/0/0/0/0 Lore% 69 Gallery% 73 Achievement% 47 Wizard Run 0 Options --------- Layout 0 ASCII 0 Keyboard 0 Movement Numpad Keybinds 0 Fullscreen 1 Font 18/SmallcapsGlow Map View 76x50 Zoom Use 0% Tactical HUD 1 Map Filters NONE Filters NONE Steam 1 RUN: c11a53e3-58bc-4e0d-80f6-d1046b6b57f2